Workbook

Sheet Input
B1: Basic Traffic Analysis | H1: Information Only
B3: Contract Name: | C3: <Enter Project Name>
B4: Date: | C4: =NOW() -> 2017-02-14T15:40:32.180 | E4: "User input at green cells only"
B7: Letable Area in Sq.Metres | C7: 3600
B8: Building Population (Area per person) | C8: =C7/E8 -> 450 | E8: 8 | F8: Sq. Metres per person
B9: Entrance Opening Width | C9: 900
B10: No of Cars | C10: =C8/E10 -> 2.25 | E10: 200 | F10: Persons per Lift
B11: No of Passengers | C11: 13 | E11: .
B12: No of Stops | C12: 3
B13: HQ = Travel / Metres | C13: 12
B14: V = Speed # m/min. | C14: =E14*60 -> 60 | E14: 1 | F14: m/Sec
B16: PASSENGERS PER TRIP | C16: =INDEX(Data!$C$10:$J$43,MATCH(Input!B16,Data!$B$10:$B$42,0),MATCH(Input!$C$14,Data!$C$8:$J$8,0)) -> 10.4
B17: TRIP LENGTH LOCAL ZONE | C17: =INDEX(Data!$C$10:$J$43,MATCH(Input!B17,Data!$B$10:$B$42,0),MATCH(Input!$C$14,Data!$C$8:$J$8,0)) -> 12
B18: AVERAGE TRIP LENGTH | C18: =INDEX(Data!$C$10:$J$43,MATCH(Input!B18,Data!$B$10:$B$42,0),MATCH(Input!$C$14,Data!$C$8:$J$8,0)) -> 4.059863533
B19: AVERAGE TRIP TIME | C19: =INDEX(Data!$C$10:$J$43,MATCH(Input!B19,Data!$B$10:$B$42,0),MATCH(Input!$C$14,Data!$C$8:$J$8,0)) -> 6.870462168
B20: TRIP TIME LOCAL ZONE | C20: =INDEX(Data!$C$10:$J$43,MATCH(Input!B20,Data!$B$10:$B$42,0),MATCH(Input!$C$14,Data!$C$8:$J$8,0)) -> 20.30746732
B21: DOOR CLOSE TIME | C21: =INDEX(Data!$C$10:$J$43,MATCH(Input!B21,Data!$B$10:$B$42,0),MATCH(Input!$C$14,Data!$C$8:$J$8,0)) -> 7.093834502
B22: PASSENGER TRANSFER TIME | C22: =INDEX(Data!$C$10:$J$43,MATCH(Input!B22,Data!$B$10:$B$42,0),MATCH(Input!$C$14,Data!$C$8:$J$8,0)) -> 20.67279828
B23: LOST TIME | C23: =INDEX(Data!$C$10:$J$43,MATCH(Input!B23,Data!$B$10:$B$42,0),MATCH(Input!$C$14,Data!$C$8:$J$8,0)) -> 2.776663278
B24: ROUND TRIP TIME (SECS) | C24: =INDEX(Data!$C$10:$J$43,MATCH(Input!B24,Data!$B$10:$B$42,0),MATCH(Input!$C$14,Data!$C$8:$J$8,0)) -> 50.85076338
B25: PASS. HAND. CAP. IN 5 MINS. | C25: =INDEX(Data!$C$10:$J$43,MATCH(Input!B25,Data!$B$10:$B$42,0),MATCH(Input!$C$14,Data!$C$8:$J$8,0)) -> 61.35601105
B27: NUMBER OF CARS REQUIRED | C27: =INDEX(Data!$C$10:$J$43,MATCH(Input!B27,Data!$B$10:$B$42,0),MATCH(Input!$C$14,Data!$C$8:$J$8,0)) -> 1.100136708
B28: ACTUAL NUMBER OF CARS | C28: =INDEX(Data!$C$10:$J$43,MATCH(Input!B28,Data!$B$10:$B$42,0),MATCH(Input!$C$14,Data!$C$8:$J$8,0)) -> 2.25
B30: AVERAGE WAITING INTERVAL (SECS) | C30: =INDEX(Data!$C$10:$J$43,MATCH(Input!B30,Data!$B$10:$B$42,0),MATCH(Input!$C$14,Data!$C$8:$J$8,0)) -> 22.60033928
B31: THEORETICAL A. W. T. (SECS) | C31: =INDEX(Data!$C$10:$J$43,MATCH(Input!B31,Data!$B$10:$B$42,0),MATCH(Input!$C$14,Data!$C$8:$J$8,0)) -> 12.4301866
B32: HANDLING CAPACITY IN 5 MINS (%) | C32: =INDEX(Data!$C$10:$J$43,MATCH(Input!B32,Data!$B$10:$B$42,0),MATCH(Input!$C$14,Data!$C$8:$J$8,0)) -> 30.67800553
C33: =IF(C32>=15,"Good","Poor") -> Good
AE35: ISO LOADS
AE36: 320
AE37: 400
AE38: 450
AE39: 550
AE40: 630
AE41: 800
AE42: 900
AE43: 1000
AE44: 1150
AE45: 1250
AE46: 1350
AE47: 1600
AE48: 2000
AE49: 2500
AE50: 3000
AE51: 3500

Sheet Data
A1: TRAFFIC STUDY PASSENGER ELEVATORS
A2: CONTRACT: | B2: =Input!C3 -> <Enter Project Name>
A3: LETABLE AREA IN SQ. METRES : | C3: =Input!C7 -> 3600
A4: BUILDING POPULATION : | C4: =Input!C8 -> 450 | D4: USING SQUARE METRES PER PERSON OF : | J4: =Input!E8 -> 8
A5: 15% OF POPULATION : | C5: =C4*0.15 -> 67.5 | D5: STOPS ABOVE OR BELOW LOBBY | G5: =Input!C12 -> 3 | H5: LOC.ZONE TRAVEL (M): | J5: =Input!C13 -> 12
A6: OPENING IN MM : | C6: =Input!C9 -> 900 | D6: EXP/STOP (PE): | E6: 0 | H6: EXP.ZONE TRAVEL: | J6: 0
A7: NO/CARS: | C7: =Input!C10 -> 2.25 | D7: NO. PASS | E7: =Input!C11 -> 13 | H7: DATE: | J7: =Input!C4 -> 2017-02-14T15:40:32.180
A8: SPEED OF LIFT (# meters per minute) | C8: =Input!C14 -> 60 | D8: 90 | E8: 105 | F8: 120 | G8: 150 | H8: 180 | I8: 210 | J8: 240
A10: R | B10: NO. OF PASSENGERS | C10: =E7 -> 13 | D10: =E7 -> 13 | E10: =E7 -> 13 | F10: =E7 -> 13 | G10: =E7 -> 13 | H10: =E7 -> 13 | I10: =E7 -> 13 | J10: =E7 -> 13
A11: V | B11: SPEED IN METRES PER SECOND | C11: 1 | D11: 1.5 | E11: 1.75 | F11: 2 | G11: 2.5 | H11: 3 | I11: 3.5 | J11: 4
A12: N | B12: NO. OF STOPS ABOVE LOBBY | C12: =G5 -> 3 | D12: =G5 -> 3 | E12: =G5 -> 3 | F12: =G5 -> 3 | G12: =G5 -> 3 | H12: =G5 -> 3 | I12: =G5 -> 3 | J12: =G5 -> 3
A13: R | B13: PASSENGERS PER TRIP | C13: =C10*0.8 -> 10.4 | D13: 10.4 | E13: 10.4 | F13: 10.4 | G13: 10.4 | H13: 10.4 | I13: 10.4 | J13: 10.4
A14: PL | B14: NO. OF PROBABLE LOCAL STOPS | C14: =C12*(1-(((C12-1)/C12)^C13)) -> 2.955764376 | D14: 2.955764376 | E14: 2.955764376 | F14: 2.955764376 | G14: 2.955764376 | H14: 2.955764376 | I14: 2.955764376 | J14: 2.955764376
A15: PE | B15: NO. OF PROBABLE EXPRESS STOPS | C15: =E6 -> 0 | D15: =E6 -> 0 | E15: =E6 -> 0 | F15: =E6 -> 0 | G15: =E6 -> 0 | H15: =E6 -> 0 | I15: =E6 -> 0 | J15: =E6 -> 0
A16: P | B16: TOTAL PROBABLE STOPS | C16: =C15+C14 -> 2.955764376 | D16: 2.955764376 | E16: 2.955764376 | F16: 2.955764376 | G16: 2.955764376 | H16: 2.955764376 | I16: 2.955764376 | J16: 2.955764376
A17: SL | B17: TRIP LENGTH LOCAL ZONE | C17: =J5 -> 12 | D17: =J5 -> 12 | E17: =J5 -> 12 | F17: =J5 -> 12 | G17: =J5 -> 12 | H17: =J5 -> 12 | I17: =J5 -> 12 | J17: =J5 -> 12
A18: SE | B18: TRIP LENGTH EXPRESS ZONE | C18: =J6 -> 0 | D18: =J6 -> 0 | E18: =J6 -> 0 | F18: =J6 -> 0 | G18: =J6 -> 0 | H18: =J6 -> 0 | I18: =J6 -> 0 | J18: =J6 -> 0
A19: J | B19: AVERAGE TRIP LENGTH | C19: =(C17/C14) -> 4.059863533 | D19: 4.059863533 | E19: 4.059863533 | F19: 4.059863533 | G19: 4.059863533 | H19: 4.059863533 | I19: 4.059863533 | J19: 4.059863533
A20: TJ | B20: AVERAGE TRIP TIME | C20: =(1.01*C19)+2.77 -> 6.870462168 | D20: =(0.655*D19)+3.575 -> 6.234210614 | E20: =(0.564*C19)+3.826 -> 6.115763032 | F20: =IF(C19<=5.75,0.874+SQRT(0.76+(4.5*C19)),3.09+(C19/2)) -> 5.236268435 | G20: =IF(C19<=9.1,0.874+SQRT(0.76+(4.5*C19)),3.65+(C19/2.5)) -> 5.236268435 | H20: =IF(C19<=12.6,0.874+SQRT(0.76+(4.5*C19)),4.2+(C19/3)) -> 5.236268435 | I20: =IF(C19<=16.7,0.874+SQRT(0.76+(4.5*C19)),4.76+(C19/3.5)) -> 5.236268435 | J20: =IF(C19<=21.3,0.874+SQRT(0.76+(4.5*C19)),5.32+(C19/4)) -> 5.236268435
A21: TL | B21: TRIP TIME LOCAL ZONE | C21: =(C20*C14) -> 20.30746732 | D21: 18.42685764 | E21: 18.0767545 | F21: 15.4771757 | G21: 15.4771757 | H21: 15.4771757 | I21: 15.4771757 | J21: 15.4771757
A22: TAE | B22: ADDITIONAL EXPRESS TIME | C22: =C15*2.7 -> 0 | D22: =D15*3.3 -> 0 | E22: =C15*3.6 -> 0 | F22: =C15*3.02 -> 0 | G22: =C15*3.58 -> 0 | H22: =C15*4.13 -> 0 | I22: =C15*4.69 -> 0 | J22: =C15*5.24 -> 0
A23: TE | B23: TRIP TIME EXPRESS ZONE | C23: =C18/C11 -> 0 | D23: 0 | E23: 0 | F23: 0 | G23: 0 | H23: 0 | I23: 0 | J23: 0
A24: TD | B24: DOOR CLOSE TIME | C24: =C50 -> 7.093834502 | D24: =(C50) -> 7.093834502 | E24: =C50 -> 7.093834502 | F24: =C50 -> 7.093834502 | G24: =C50 -> 7.093834502 | H24: =C50 -> 7.093834502 | I24: =C50 -> 7.093834502 | J24: =C50 -> 7.093834502
A25: TR | B25: PASSENGER TRANSFER TIME | C25: =(0.8+($D$50)*(($C$16-1)^0.333))*$C$13 -> 20.67279828 | D25: 20.67279828 | E25: 20.67279828 | F25: 20.67279828 | G25: 20.67279828 | H25: 20.67279828 | I25: 20.67279828 | J25: 20.67279828
A26: TA | B26: LOST TIME | C26: =0.1*(C25+C24) -> 2.776663278 | D26: 2.776663278 | E26: 2.776663278 | F26: 2.776663278 | G26: 2.776663278 | H26: 2.776663278 | I26: 2.776663278 | J26: 2.776663278
A28: RTT | B28: ROUND TRIP TIME (SECS) | C28: =SUM(C21:C26) -> 50.85076338 | D28: 48.9701537 | E28: 48.62005056 | F28: 46.02047176 | G28: 46.02047176 | H28: 46.02047176 | I28: 46.02047176 | J28: 46.02047176
A30: HC | B30: PASS. HAND. CAP. IN 5 MINS. | C30: =((60*5)/C28)*C13 -> 61.35601105 | D30: 63.71227705 | E30: 64.17105626 | F30: 67.79591518 | G30: 67.79591518 | H30: 67.79591518 | I30: 67.79591518 | J30: 67.79591518
A32: NR | B32: NUMBER OF CARS REQUIRED | C32: =(C5/C30) -> 1.100136708 | D32: =(C5/D30) -> 1.059450441 | E32: =(C5/E30) -> 1.051876094 | F32: =(C5/F30) -> 0.9956352064 | G32: =(C5/G30) -> 0.9956352064 | H32: =(C5/H30) -> 0.9956352064 | I32: =(C5/I30) -> 0.9956352064 | J32: =(C5/J30) -> 0.9956352064
A34: NO | B34: ACTUAL NUMBER OF CARS | C34: =C7 -> 2.25 | D34: =C7 -> 2.25 | E34: =C7 -> 2.25 | F34: =C7 -> 2.25 | G34: =C7 -> 2.25 | H34: =C7 -> 2.25 | I34: =C7 -> 2.25 | J34: =C7 -> 2.25
A36: AWI | B36: AVERAGE WAITING INTERVAL (SECS) | C36: =(C28/C34) -> 22.60033928 | D36: 21.76451276 | E36: 21.60891136 | F36: 20.453543 | G36: 20.453543 | H36: 20.453543 | I36: 20.453543 | J36: 20.453543
A38: TAWT | B38: THEORETICAL A. W. T. (SECS) | C38: =(C36*0.55) -> 12.4301866 | D38: 11.97048202 | E38: 11.88490125 | F38: 11.24944865 | G38: 11.24944865 | H38: 11.24944865 | I38: 11.24944865 | J38: 11.24944865
A40: QC | B40: HANDLING CAPACITY IN 5 MINS (%) | C40: =((C30*C34)/C4)*100 -> 30.67800553 | D40: =((D30*D34)/C4)*100 -> 31.85613853 | E40: =((E30*E34)/C4)*100 -> 32.08552813 | F40: =((F30*F34)/C4)*100 -> 33.89795759 | G40: =((G30*G34)/C4)*100 -> 33.89795759 | H40: =((H30*H34)/C4)*100 -> 33.89795759 | I40: =((I30*I34)/C4)*100 -> 33.89795759 | J40: =((J30*J34)/C4)*100 -> 33.89795759
A42: FT | B42: BUILDING FILLING TIME (MINS) | C42: =(500/C40) -> 16.2983216 | D42: 15.69556208 | E42: 15.58334954 | F42: 14.75015121 | G42: 14.75015121 | H42: 14.75015121 | I42: 14.75015121 | J42: 14.75015121
C50: =IF($C$6=800,$C$16*2,$C$51) -> 7.093834502 | D50: =IF(C$6=800,1,D$51) -> 0.95 | E50: =IF(C$6=800,1,D$51) -> 0.95 | F50: 0 | G50: 0 | H50: 0 | I50: 0 | J50: 0
C51: =IF($C$6=850,$C$16*2.2,$C$52) -> 7.093834502 | D51: =IF(C$6=850,1,D$52) -> 0.95 | E51: 0 | F51: 0 | G51: 0 | H51: 0 | I51: 0 | J51: 0
C52: =IF($C$6=900,$C$16*2.4,$C$53) -> 7.093834502 | D52: =IF(C$6=900,0.95,D$53) -> 0.95
C53: =IF($C$6=950,$C$16*2.6,$C54) -> 0 | D53: =IF(C$6=950,0.95,D$54) -> 0
C54: =IF(C$6=1000,C$16*2.8,C55) -> 0 | D54: =IF(C$6=1000,0.9,D$55) -> 0
C55: =IF(C$6=1050,C$16*3,C56) -> 0 | D55: =IF(C$6=1050,0.88,D$56) -> 0
C56: =IF(C$6=1100,C$16*3.3,C57) -> 0 | D56: =IF(C$6=1100,0.85,D$57) -> 0
C57: =IF(C$6=1150,C$16*3.4,C58) -> 0 | D57: =IF(C$6=1150,0.85,D$58) -> 0
C58: =IF(C$6=1200,C$16*3.7,C59) -> 0 | D58: =IF(C$6=1200,0.8,D$59) -> 0
C59: =IF(C$6=1250,C$16*4,C60) -> 0 | D59: =IF(C$6=1250,0.78,D$60) -> 0
C60: =IF(C$6=1300,C$16*4.2,C61) -> 0 | D60: =IF(C$6=1300,0.75,D$61) -> 0
C61: =IF(C$6=1350,C$16*4.4,C62) -> 0 | D61: =IF(C$6=1350,0.75,D$62) -> 0
C62: =IF($C35=1400,$C27*4.7,C63) -> 0 | D62: =IF(C$6=1400,0.7,D$63) -> 0
C63: =IF($C$6=1500,$C$16*5.1,C64) -> 0 | D63: =IF(C$6=1500,0.65,D$64) -> 0
